[Event "IV Estrellas 2022"]
[Site "La Palma"]
[Date "2022.08.06"]
[Round "1.16"]
[White "Macias Reyes, Jose Luis"]
[Black "Brito Garcia, Alfredo"]
[Result "0-1"]
[ECO "D00"]
[WhiteElo "1540"]
[BlackElo "2291"]
[Annotator "RC"]
[PlyCount "56"]
[EventDate "2022.08.06"]
[EventType "swiss"]
[EventCountry "ESP"]
[SourceTitle "playchess.com"]
[Source "ChessBase"]
[SourceQuality "1"]
[TimeControl "5400+30"]

1. d4 {[%emt 0:00:02]} d5 {[%emt 0:00:36]} 2. Bf4 {[%emt 0:00:11]} c5 {[%emt 0:00:37]} 3. e3 {[%emt 0:00:30]} Nc6 {[%emt 0:00:18]} 4. Nd2 {[%emt 0:00:31]} cxd4 {[%emt 0:06:36]} 5. exd4 {[%emt 0:00:39]} Nxd4 {[%emt 0:01:00]} 6. c3 {[%emt 0:01:55]} Nc6 {[%emt 0:00:12]} 7. Bd3 {[%emt 0:00:43]} e5 {[%emt 0:00:41]} 8. Bg3 {[%emt 0:00:37]} Nf6 {[%emt 0:00:47]} 9. h3 {[%emt 0:02:05]} Bd6 {[%emt 0:01:22]} 10. Bb5 {[%emt 0:02:25]} O-O {[%emt 0:01:21]} 11. Bh4 {[%emt 0:01:19]} h6 {[%emt 0:01:42]} 12. Qc2 {[%emt 0:05:25]} Be6 {[%emt 0:00:58]} 13. Ne2 {[%emt 0:04:14]} Rc8 {[%emt 0:03:49]} 14. Qa4 {[%emt 0:06:22]} a6 {[%emt 0:01:42]} 15. Bxc6 {[%emt 0:00:55]} Rxc6 {[%emt 0:00:25]} 16. O-O {[%emt 0:00:38]} g5 {[%emt 0:01:19]} 17. Bg3 {[%emt 0:00:38]} Nh5 {[%emt 1:15:35]} 18. Bh2 {[%emt 0:06:42]} f5 {[%emt 0:00:00]} 19. Rfe1 {[%emt 0:05:09]} Qd7 {[%emt 0:00:00]} 20. Nf3 {[%emt 0:11:47]} f4 {[%emt 0:00:00]} 21. Rad1 {[%emt 0:07:16]} Nf6 {[%emt 0:00:00]} 22. Nc1 {[%emt 0:08:31]} e4 {[%emt 0:00:00]} 23. Nd4 {[%emt 0:01:28]} Bxh3 {[%emt 0:00:00]} 24. g3 {[%emt 0:09:42]} e3 {[%emt 0:00:00]} 25. Qc2 {[%emt 0:03:55]} exf2+ {[%emt 0:00:00]} 26. Qxf2 {[%emt 0:05:17]} fxg3 {[%emt 0:00:00]} 27. Bxg3 {[%emt 0:00:17]} Ne4 {[%emt 0:00:00]} 28. Qe3 {[%emt 0:01:35]} Bxg3 {[%emt 0:00:00]} 0-1

[Event "IV Estrellas 2022"]
[Site "La Palma"]
[Date "2022.08.06"]
[Round "1.17"]
[White "Estremera Panos, Sergio"]
[Black "Lorenzo Ventura, Abel"]
[Result "0-1"]
[ECO "D26"]
[WhiteElo "2262"]
[BlackElo "1577"]
[Annotator "RC"]
[PlyCount "54"]
[EventDate "2022.08.06"]
[EventType "swiss"]
[EventCountry "ESP"]
[SourceTitle "playchess.com"]
[Source "ChessBase"]
[SourceQuality "1"]
[TimeControl "5400+30"]

1. d4 {[%emt 0:36:36]} d5 {[%emt 0:09:13]} 2. c4 {[%emt 0:00:10]} dxc4 {[%emt 0:00:08]} 3. e3 {[%emt 0:00:18]} e6 {[%emt 0:00:54]} 4. Bxc4 {[%emt 0:00:18]} Nf6 {[%emt 0:00:08]} 5. Nf3 {[%emt 0:00:20]} Nbd7 {[%emt 0:02:43]} 6. O-O {[%emt 0:00:51]} Be7 {[%emt 0:03:59]} 7. Nc3 {[%emt 0:00:49]} O-O {[%emt 0:00:24]} 8. e4 {[%emt 0:00:29]} Nb6 {[%emt 0:04:15]} 9. Bd3 {[%emt 0:01:14]} c5 {[%emt 0:03:05]} 10. dxc5 {[%emt 0:03:22]} Bxc5 {[%emt 0:00:49]} 11. e5 {[%emt 0:00:47]} Nfd5 {[%emt 0:15:32]} 12. Bxh7+ {[%emt 0:02:12]} Kxh7 {[%emt 0:00:10]} 13. Ng5+ {[%emt 0:00:09]} Kg6 {[%emt 0:01:00]} 14. Qc2+ {[%emt 0:00:26]} f5 {[%emt 0:04:15]} 15. exf6+ {[%emt 0:00:13]} Kxf6 {[%emt 0:00:04]} 16. Nce4+ {[%emt 0:00:25]} Ke7 {[%emt 0:00:09]} 17. Qxc5+ {[%emt 0:00:09]} Ke8 {[%emt 0:00:29]} 18. a4 {[%emt 0:29:13]} Qe7 {[%emt 0:01:35]} 19. a5 {[%emt 0:02:14]} Qxc5 {[%emt 0:04:54]} 20. Nxc5 {[%emt 0:00:10]} Nc4 {[%emt 0:02:10]} 21. b3 {[%emt 0:01:48]} Nd6 {[%emt 0:01:41]} 22. Ncxe6 {[%emt 0:01:14]} Rf6 {[%emt 0:00:21]} 23. Nxg7+ {[%emt 0:01:22]} Kf8 {[%emt 0:00:36]} 24. Nh5 {[%emt 0:00:16]} Rf5 {[%emt 0:02:05]} 25. Ng3 {[%emt 0:01:00]} Ke8 {[%emt 0:42:21]} 26. Be3 {[%emt 0:17:25]} Re5 27. Bc1 {[%emt 0:00:30]} Kd8 {[%emt 0:01:00]} 0-1

[Event "IV Estrellas 2022"]
[Site "La Palma"]
[Date "2022.08.06"]
[Round "1.18"]
[White "Valero Hellin, Jose Luis"]
[Black "Cubas Cabrera, Angel Luis"]
[Result "0-1"]
[ECO "D05"]
[WhiteElo "1576"]
[BlackElo "2207"]
[Annotator "RC"]
[PlyCount "36"]
[EventDate "2022.08.06"]
[EventType "swiss"]
[EventCountry "ESP"]
[SourceTitle "playchess.com"]
[Source "ChessBase"]
[SourceQuality "1"]
[TimeControl "5400+30"]

1. d4 {[%emt 0:00:03]} Nf6 {[%emt 0:00:08]} 2. e3 {[%emt 0:00:06]} e6 {[%emt 0:00:33]} 3. Bd3 {[%emt 0:00:12]} b6 {[%emt 0:00:31]} 4. Nf3 {[%emt 0:00:32]} Bb7 {[%emt 0:00:36]} 5. Nbd2 {[%emt 0:00:15]} d5 {[%emt 0:01:41]} 6. O-O {[%emt 0:00:21]} Nbd7 {[%emt 0:00:38]} 7. c3 {[%emt 0:00:36]} Be7 {[%emt 0:01:57]} 8. Qc2 {[%emt 0:03:05]} c5 {[%emt 0:00:35]} 9. c4 {[%emt 0:07:41]} Rc8 {[%emt 0:04:07]} 10. b3 {[%emt 0:03:49]} dxc4 {[%emt 0:08:29]} 11. Qxc4 {[%emt 0:26:27]} O-O {[%emt 0:04:55]} 12. Be2 {[%emt 0:06:47]} Nd5 {[%emt 0:02:40]} 13. Qd3 {[%emt 0:13:54]} cxd4 {[%emt 0:18:02]} 14. Nxd4 {[%emt 0:03:44]} Nb4 {[%emt 0:52:38]} 15. Qb1 {[%emt 0:01:25]} e5 {[%emt 0:00:00]} 16. a3 Nd5 {[%emt 0:01:00]} 17. Nf5 {[%emt 0:16:41]} Nc3 {[%emt 0:00:00]} 18. Qd3 {[%emt 0:01:17]} e4 {[%emt 0:00:00]} 0-1

[Event "IV Estrellas 2022"]
[Site "La Palma"]
[Date "2022.08.07"]
[Round "2.1"]
[White "Perez Bolanos, David"]
[Black "Pulvett Marin, Daniel Eduardo"]
[Result "0-1"]
[ECO "D00"]
[WhiteElo "2041"]
[BlackElo "2523"]
[Annotator "TA"]
[PlyCount "82"]
[EventDate "2022.08.06"]
[EventType "swiss"]
[EventCountry "ESP"]
[SourceTitle "playchess.com"]
[Source "ChessBase"]
[SourceQuality "1"]
[TimeControl "5400+30"]

{[%evp 9,82,0,-12,0,2,-13,7,0,0,-8,10,0,0,0,0,0,3,0,32,-27,-31,-16,-18,-20,-15,-45,-14,-177,-187,-191,-178,-185,-192,-241,-212,-196,-211,-179,-190,-224,-233,-220,-157,-214,-177,-436,-429,-597,-276,-247,-229,-209,-228,-241,-95,-108,-106,-695,0,-115,0,0,0,-346,-347,-376,-380,-353,-367,-29988,-29987,-29987,-29988,-29984,-2940]} 1. d4 {[%emt 1:31:00]} Nf6 {[%emt 1:31:00]} 2. Nf3 {[%emt 0:00:30]} g6 {[%emt 0:00:30]} 3. Nc3 {[%emt 0:00:30]} d5 {[%emt 0:00:30]} 4. Bf4 {[%emt 0:00:30]} Bg7 {[%emt 0:00:30]} 5. Nb5 {[%emt 0:00:30]} Na6 {[%emt 0:00:30]} 6. e3 {[%emt 0:00:30] D00: 1 d4 d5: Unusual lines.} O-O {[%emt 0:00:30] 6...0-0 scores better than 6...c6.} 7. h3 {[%emt 0:00:30]} c6 {[%emt 0:00:30]} 8. Nc3 {[%emt 0:00:30] The position is equal.} Nc7 {[%emt 0:00:30][%cal Oc6c5]} 9. Be2 {[%emt 0:00:30]} b6 {[%emt 0:00:30]} 10. O-O {[%emt 0:00:30]} Bb7 {[%emt 0:00:30]} 11. a4 {[%emt 0:00:30]} a5 {[%emt 0:00:30] [#]} 12. Nb1 $146 {[%emt 0:00:30]} ({Predecessor:} 12. Rc1 Rc8 13. b3 Nd7 14. Bh2 Qe8 15. Ne5 Nxe5 16. dxe5 Ba6 17. Qd2 Qd7 18. Bxa6 Nxa6 {0-1 (129) Sadhwani,R (2616)-Swiercz,D (2656) Chess.com INT 2022}) 12... Nd7 {[%emt 0:00:30]} 13. Nbd2 {[%emt 0:00:30]} f6 {[%emt 0:00:30]} 14. c3 {[%emt 0:00:30]} (14. Bg3 $14) 14... e5 $11 {[%emt 0:00:30]} 15. Bh2 {[%emt 0:00:30]} e4 {[%emt 0:00:30]} 16. Ne1 {[%emt 0:00:30]} f5 {[%emt 0:00:30]} 17. b4 {[%emt 0:00:30]} Ne6 {[%emt 0:00:30]} 18. f4 $2 {[%emt 0:00:30]} (18. bxa5 $11 Rxa5 19. Nc2) 18... axb4 $1 $19 {[%emt 0:00:30]} 19. cxb4 {[%emt 0:00:30]} c5 $36 {[%emt 0:00:30][%mdl 2048] Black is on the roll.} 20. Nb3 {[%emt 0:00:30]} cxd4 {[%emt 0:00:30]} 21. exd4 {[%emt 0:00:30]} (21. Nxd4 {was called for.} Nxd4 22. exd4) 21... Qe7 {[%emt 0:00:30]} 22. Nc2 {[%emt 0:00:30]} Rfc8 {[%emt 0:00:30]} 23. Kh1 {[%emt 0:00:30]} Rc3 {[%emt 0:00:30]} 24. Qb1 {[%emt 0:00:30]} Rac8 {[%emt 0:00:30]} 25. Ra2 {[%emt 0:00:30]} Qh4 {[%emt 0:00:30] And now ...Bh6 would win.} 26. Na3 {[%emt 0:00:30]} (26. Bb5 $17 Qd8 27. a5) 26... Bh6 {[%emt 0:00:30]} (26... Nxd4 27. Nxd4 Bxd4 28. Nb5 $14) 27. Bb5 $2 {[%emt 0:00:30]} (27. Nb5 Re3 28. Bg1) 27... Nf6 {[%emt 0:00:30]} 28. Raf2 {[%emt 0:00:30] [#]} Bxf4 {[%emt 0:00:30]} 29. Rxf4 {[%emt 0:00:30]} (29. Bxf4 $2 Nxf4 30. Rxf4 Rxh3+ $1 {[%mdl 512]} 31. gxh3 Qxh3+ 32. Kg1 Rc3 $19) 29... Nxf4 {[%emt 0:00:30]} 30. Rxf4 {[%emt 0:00:30]} (30. Bxf4 $2 Nh5 31. Bd6 Ng3+ 32. Bxg3 Qxg3 $19) 30... Qg5 {[%emt 0:00:30]} (30... Rxb3 31. Qxb3 (31. Rxh4 $2 Rxb1+ 32. Nxb1 Rc1+ 33. Bg1 Rxb1 $19) 31... Rc1+ 32. Rf1 Rxf1+ 33. Bxf1 $18) 31. Be2 {[%emt 0:00:30] [#]} Re3 {[%emt 0:00:30]} (31... Rg3 $1 $19 {[%mdl 512]} 32. Bxg3 (32. Rf1 Rcc3) 32... Qxg3) 32. Rf2 $17 {[%emt 0:00:30]} Qh4 {[%emt 0:00:30] Black is more active.} 33. Rf4 {[%emt 0:00:30][%mdl 8192]} (33. Kg1 $17) 33... Qg5 $2 {[%emt 0:00:30]} ({Stronger than} 33... Rxb3 34. Qd1 (34. Rxh4 $2 {is the wrong capture.} Rxb1+ 35. Nxb1 Rc1+ 36. Bg1 Rxb1 $19) (34. Qxb3 $2 Qe1+ 35. Rf1 Qxe2 $19) 34... Qxf4 35. Bxf4 Rxa3 36. Bb5 $17) (33... Ng4 $19 {and Black stays clearly on top.} 34. Qb2 Qe1+ 35. Rf1 Rxe2 36. Rxe1 Nf2+ 37. Kg1 Rxb2) 34. Rf2 {[%emt 0:00:30] [#]} Nh5 {[%emt 0:00:30] Against Bf4} (34... Rcc3 $1 $17 {[%cal Rc3b3]} 35. Nc2 (35. Bf4 $2 Qh4 $19) 35... Rxb3) 35. Bxh5 $11 {[%emt 0:00:30]} Qxh5 {[%emt 0:00:30]} 36. Bf4 $2 {[%emt 0:00:30][%mdl 8192]} (36. Nb5 $11 {and White is okay.}) 36... Rd3 $19 {[%emt 0:00:30] aiming for ...Rd1+.} 37. Bd2 {[%emt 0:00:30]} f4 {[%emt 0:00:30]} 38. Rxf4 {[%emt 0:00:30]} Qe2 {[%emt 0:00:30] Prevents Rf2. Strongly threatening ...e3.} 39. Bc1 {[%emt 0:00:30]} (39. Kh2 $19 Bc6 40. Nb5 Bxb5 41. axb5 Rxd2 42. Nxd2 Qxd2 43. Rf6 Qxd4 44. Re6) 39... Qe1+ {[%emt 0:00:30] Black mates.} 40. Kh2 {[%emt 0:00:30]} Qg3+ {[%emt 0:00:30]} 41. Kg1 {[%emt 0:00:30]} Rxb3 {[%emt 0:00:30] Weighted Error Value: White=0.75/Black=0.49} (41... Rd1+ $142 42. Rf1 Rxf1+ 43. Kxf1 Rf8+ 44. Bf4 Rxf4+ 45. Kg1 Rf2 46. Qf1 Rxf1+ 47. Kxf1 Qxb3 48. h4 Qxa3 49. Kf2 Qd3 50. b5 e3+ 51. Kf3 e2+ 52. Kf2 Qd2 53. Kf3 e1=B 54. Kg4 Qxd4+ 55. Kh3 Qxh4#) 0-1

[Event "IV Estrellas 2022"]
[Site "La Palma"]
[Date "2022.08.07"]
[Round "2.2"]
[White "Martinez Duany, Lelys Stanley"]
[Black "Amador Garcia, Ismael"]
[Result "1-0"]
[ECO "A06"]
[WhiteElo "2497"]
[BlackElo "2128"]
[Annotator "TA"]
[PlyCount "64"]
[EventDate "2022.08.06"]
[EventType "swiss"]
[EventCountry "ESP"]
[SourceTitle "playchess.com"]
[Source "ChessBase"]
[SourceQuality "1"]
[TimeControl "5400+30"]

{[%evp 9,64,2,2,0,16,17,27,24,48,40,23,35,56,62,56,51,80,71,101,93,86,78,108,108,112,105,112,105,115,92,163,155,419,429,429,399,397,106,106,101,104,104,100,104,462,449,457,452,900,904,867,858,1326,1256,1132,1066,29999]} 1. Nf3 {[%emt 0:00:04]} Nf6 {[%emt 0:00:03]} 2. b3 {[%emt 0:00:28]} d5 {[%emt 0:00:36]} 3. Bb2 {[%emt 0:00:17]} e6 {[%emt 0:00:10]} 4. g3 {[%emt 0:01:19]} c5 {[%emt 0:00:05]} 5. Bg2 {[%emt 0:00:16]} Nc6 {[%emt 0:00:06]} 6. O-O {[%emt 0:00:07] A06: Réti Opening: 1 Nf3 d5.} Bd6 {[%emt 0:07:53]} 7. d4 {[%emt 0:00:11] Against e5} cxd4 {[%emt 0:03:16]} 8. Nxd4 {[%emt 0:00:09][%cal Oe2e4] White has an edge.} e5 {[%emt 0:03:31]} 9. Nxc6 {[%emt 0:02:15]} bxc6 {[%emt 0:00:12]} 10. c4 {[%emt 0:00:21][%cal Rc4d5]} Bb7 {[%emt 0:02:24]} 11. cxd5 {[%emt 0:01:56]} cxd5 {[%emt 0:00:28]} 12. Nc3 {[%emt 0:00:07][%cal Rc3d5,Bb1c3,Bc3b5,Bb5d4,Bd4c6][%mdl 32]} e4 {[%emt 0:18:32] [#]} 13. Nb5 $146 {[%emt 0:01:30]} ({Predecessor:} 13. Nxd5 Nxd5 14. Bxe4 Nc3 15. Bxc3 Bxe4 16. Qd4 Qe7 17. Qa4+ Kf8 18. Rad1 Bc5 19. Rd4 {1-0 (30) McMahon,D (2235)-Carton,N (2265) London 1994}) 13... Be7 {[%emt 0:02:47]} 14. Rc1 {[%emt 0:01:07] Black must now prevent Rc7.} O-O {[%emt 0:01:45]} 15. Qd2 {[%emt 0:00:23]} a6 {[%emt 0:09:13]} 16. Nd4 {[%emt 0:00:28] 0x0.001b80986e55dp-1022s more active pieces. The black rooks are badly placed.} Qd7 {[%emt 0:00:03] Against Nf5} 17. Qf4 {[%emt 0:05:25]} Bd6 {[%emt 0:01:37] Prevents Rc7.} 18. Qh4 {[%emt 0:00:09]} Bc8 {[%emt 0:08:38]} 19. Nc6 {[%emt 0:02:20] Against Be5} Qf5 {[%emt 0:08:26]} (19... Ne8 $16) 20. f3 $18 {[%emt 0:06:47]} g5 $2 {[%emt 0:02:31]} (20... exf3 $16 21. Rxf3 Qg4) 21. Qh6 {[%emt 0:00:21] Strongly threatening fxe4.} Qg6 {[%emt 0:01:20]} 22. Qxg6+ {[%emt 0:00:49]} fxg6 {[%emt 0:00:03]} 23. Rfd1 $2 {[%emt 0:00:47]} (23. fxe4 $1 $18 {and the rest is easy.} Nxe4 24. Rfd1) 23... Bf5 $16 {[%emt 0:04:31]} 24. fxe4 {[%emt 0:00:59]} (24. Na5 {keeps more tension.} Bb4 25. fxe4 Bxe4 26. Nc6) 24... Bxe4 {[%emt 0:01:43]} 25. Bxe4 {[%emt 0:00:20]} Nxe4 {[%emt 0:00:06]} 26. Rxd5 {[%emt 0:00:06]} Rf2 $2 {[%emt 0:01:50][%mdl 8192] [#]} (26... Rae8 $16) 27. Rxd6 $1 $18 {[%emt 0:06:59][%cal Bd5d6,Bd6e6,Be6f6][%mdl 544] White is clearly winning.} Rxe2 {[%emt 0:00:03]} 28. Re6 {[%emt 0:02:46]} Nxg3 {[%emt 0:00:02]} (28... Rxb2 $142 29. Rxe4 Rf8) 29. Ne7+ {[%emt 0:02:16]} (29. hxg3 Rxe6 30. Ne5 Rd8 $14) 29... Kf7 {[%emt 0:00:47] [#]} 30. Rf6+ $1 {[%emt 0:00:07]} ({Worse is} 30. hxg3 Kxe6 31. Ba3 Rd8 $17) ({Not} 30. Re5 $2 Rxe5 31. hxg3 Rxe7 $19) 30... Kxe7 {[%emt 0:00:16]} 31. Rc7+ {[%emt 0:00:08][%mdl 64] Skewer} Ke8 {[%emt 0:05:56] [#]} 32. Ba3 $1 {[%emt 1:05:13][%csl Ga3][%cal Rf6f8]} Re5 {[%emt 0:17:37] Weighted Error Value: White=0.17 (very precise) /Black=0.60} 1-0

[Event "IV Estrellas 2022"]
[Site "La Palma"]
[Date "2022.08.07"]
[Round "2.3"]
[White "Del Rio De Angelis, Salvador G."]
[Black "Sosa Suarez, Carla Cristina"]
[Result "1-0"]
[ECO "D45"]
[WhiteElo "2442"]
[BlackElo "2125"]
[Annotator "TA"]
[PlyCount "81"]
[EventDate "2022.08.06"]
[EventType "swiss"]
[EventCountry "ESP"]
[SourceTitle "playchess.com"]
[Source "ChessBase"]
[SourceQuality "1"]
[TimeControl "5400+30"]

{[%evp 14,81,3,0,0,0,3,0,8,0,0,0,0,0,0,4,25,0,28,-14,0,-37,0,-106,-103,-115,-112,-148,-148,-149,-151,-158,-65,-68,-26,-26,-28,-37,-10,-10,-13,-34,-31,-27,0,0,0,-84,8,8,125,120,117,8,8,7,8,0,0,0,0,-189,8,8,8,8,668,655,5106,2868]} 1. d4 {[%emt 0:00:11]} e6 {[%emt 0:00:05]} 2. c4 {[%emt 0:00:21]} d5 {[%emt 0:00:05]} 3. Nc3 {[%emt 0:00:26]} c6 {[%emt 0:00:04]} 4. e3 {[%emt 0:00:20]} Nf6 {[%emt 0:00:05]} 5. Nf3 {[%emt 0:00:20]} Nbd7 {[%emt 0:00:07]} 6. Be2 {[%emt 0:00:31]} Bd6 {[%emt 0:00:24]} 7. O-O {[%emt 0:00:22]} O-O {[%emt 0:00:06]} 8. b3 {[%emt 0:00:17]} b6 {[%emt 0:00:06] D45: Semi-Slav: 5 e3.} 9. Bb2 {[%emt 0:00:13]} Re8 {[%emt 0:00:17]} 10. a4 {[%emt 0:02:50]} a5 {[%emt 0:01:47] The position is equal.} 11. Qc2 {[%emt 0:00:10]} Bb7 {[%emt 0:00:26]} 12. Bd3 {[%emt 0:00:09]} Qe7 {[%emt 0:04:46] [#]} 13. Rae1 $146 {[%emt 0:02:47]} ({Predecessor:} 13. Rad1 Rad8 14. h3 h6 15. Rfe1 Bb4 16. Re2 c5 17. cxd5 Bxc3 18. Qxc3 Nxd5 19. Qe1 Nb4 {½-½ (34) Sergeev,V (2491)-Kraft,D (2482) ICCF email 2019}) 13... Bb4 {[%emt 0:09:59]} 14. Re2 {[%emt 0:00:25]} Rad8 {[%emt 0:02:10]} 15. Ne5 {[%emt 0:03:37]} c5 {[%emt 0:11:30][%cal Bc6c5,Bc5c4][%mdl 32]} 16. Nxd7 {[%emt 0:10:42]} Qxd7 {[%emt 0:02:49]} 17. cxd5 {[%emt 0:01:52]} exd5 {[%emt 0:01:03][%cal Oc5c4]} 18. Na2 {[%emt 0:03:12]} (18. Nb5 $11) 18... c4 $1 $17 {[%emt 0:17:45]} 19. Bf5 {[%emt 0:00:49]} (19. bxc4 $6 dxc4 20. Bxc4 (20. Nxb4 cxd3 21. Nxd3 Rc8 $11) 20... Rc8 21. Nxb4 axb4 $11) 19... Qc6 {[%emt 0:00:55]} 20. f3 {[%emt 0:03:07]} (20. Nxb4 axb4 21. Ra1 g6 $19) 20... g6 {[%emt 0:02:56]} 21. Bh3 {[%emt 0:00:08]} Ba6 $1 {[%emt 0:07:25]} 22. Rc1 {[%emt 0:03:20]} Qb7 {[%emt 0:01:53]} (22... b5 $1 $17 {aiming for ...Bd6.} 23. g3 Rb8 24. Nxb4 axb4) 23. bxc4 $15 {[%emt 0:00:39][%cal Oe3e4]} (23. Nxb4 $2 axb4 24. Ree1 c3 $19) 23... Bxc4 {[%emt 0:02:17]} 24. Nxb4 {[%emt 0:00:11]} axb4 {[%emt 0:01:19]} 25. Ree1 {[%emt 0:00:26]} Qa6 {[%emt 0:01:03]} 26. Ra1 {[%emt 0:02:14]} Re7 {[%emt 0:05:21]} 27. e4 {[%emt 0:03:49]} dxe4 $1 {[%emt 0:01:20]} 28. fxe4 {[%emt 0:00:15]} Bd3 {[%emt 0:02:52]} 29. Qc6 {[%emt 0:00:21]} Nxe4 {[%emt 0:04:06] Hoping for ...Qa7.} 30. Rac1 {[%emt 0:03:02]} (30. d5 $11 {keeps the balance.} Qb7 31. Rad1 Rxd5 32. Qxb7 Rxb7 33. Re3 (33. Rxd3 Rxd3 34. Rxe4 Rd1+ 35. Kf2 Rd2+ 36. Re2 Rxe2+ 37. Kxe2 Rc7 $11)) 30... Qa8 {[%emt 0:05:22]} (30... f5 $17 {Threatens to win with ...Rd6.} 31. Re3 Kf7) 31. d5 $11 {[%emt 0:00:48][%cal Bd4d5,Bd5c6][%mdl 32]} Qxc6 {[%emt 0:00:31]} (31... f5 $11) 32. dxc6 $16 {[%emt 0:00:58]} f5 {[%emt 0:00:54]} 33. Bf6 {[%emt 0:01:10]} (33. g4 $16 Rde8 34. c7) 33... Nxf6 $11 {[%emt 0:04:03]} 34. Rxe7 {[%emt 0:00:06]} b3 {[%emt 0:00:08]} 35. Rb7 $36 {[%emt 0:02:21][%mdl 2048] Black is under pressure.} b2 {[%emt 0:00:51]} 36. Rd1 {[%emt 0:00:33]} Nd5 {[%emt 0:03:13][%cal Od8c8] White must now prevent ...Rc8!} 37. a5 $2 {[%emt 0:02:51] [#]} ({Don't play} 37. Rd7 Rc8 $1 38. Re1 (38. Rxd5 Rxc6 39. Re5 Rc1 $17) 38... Be4 39. Rxd5 Bxd5 $17) (37. c7 $1 $11 {and White stays safe.} Re8 38. a5) 37... b1=Q $2 {[%emt 0:06:39]} ({Better is} 37... Rc8 $1 $19 {[%cal Oc8c6]} 38. a6 Bxa6) 38. Rxb1 {[%emt 0:00:06] The board is on fire.} Bxb1 {[%emt 0:00:03]} 39. a6 {[%emt 0:03:40][%cal Ba5a6,Ba6a7][%mdl 32] a7 is the strong threat.} Ra8 {[%emt 0:02:14][%mdl 8192]} (39... Be4 $11) 40. a7 $18 {[%emt 0:00:26]} Re8 {[%emt 0:00:54]} 41. Rb8 {[%emt 0:00:19] Never resign too early!  Weighted Error Value: White=0.27 (precise) /Black=0.46} 1-0